bitfinex/quotes_SOLUSD_20241216
["timestamp","ask_amount","ask_price","bid_price","bid_amount"]
[1734307202081,0.12549,224.27,224.07,23.776884]
[1734307202419,0.12549,224.27,224.1,20.0]
[1734307202595,0.12549,224.27,224.14,20.0]
[1734307203387,0.12549,224.27,224.09,23.776884]
[1734307203585,0.12549,224.27,224.13,23.776884]
[1734307205206,1.99790255,224.31,224.13,23.776884]
[1734307205207,0.12549,224.28,224.13,23.776884]
[1734307205587,20.0,224.27,224.13,23.776884]
[1734307205788,0.12549,224.26,224.13,23.776884]
[1734307206012,1.96718055,224.33,224.16,20.0]
[1734307206306,6.3751,224.35,224.17,28.776884]
[1734307206513,6.75135515,224.64,224.21,23.776884]
[1734307206514,11.2045,224.46,224.21,23.776884]
[1734307206804,19.81092303,224.42,224.21,23.776884]
[1734307207185,19.81092303,224.42,224.22,5.0]
[1734307207383,19.81092303,224.42,224.23,18.75941174]
[1734307207724,19.81092303,224.42,224.28,23.776884]
[1734307207725,17.831756,224.42,224.28,23.776884]
[1734307209308,6.2045,224.46,224.28,28.776884]
[1734307209478,17.827307,224.45,224.32,23.776884]
[1734307209684,6.2045,224.46,224.32,23.776884]
[1734307209906,1.9974093,224.48,224.34,23.776884]
[1734307210299,6.5652,224.54,224.34,23.776884]
[1734307210793,1.99581217,224.52,224.36,23.776884]
[1734307211635,20.0,224.51,224.36,28.776884]
[1734307212602,20.0,224.51,224.38,5.0]
[1734307212803,1.99581217,224.52,224.38,5.0]
[1734307213313,6.2941,224.61,224.4,5.0]
[1734307213517,6.2941,224.61,224.42,25.0]
[1734307213830,2.0418005,224.6,224.42,25.0]
[1734307214021,6.2941,224.61,224.42,43.75941174]
[1734307214323,222.9771575,224.78,224.48,5.0]
[1734307214324,6.2941,224.68,224.48,5.0]
[1734307214495,5.5227756,224.65,224.46,5.0]
[1734307214698,5.0,224.63,224.42,5.0]
[1734307214909,5.5226,224.57,224.38,5.0]
[1734307215107,0.5226,224.57,224.38,5.0]
[1734307215407,2.00329999,224.57,224.42,5.0]
[1734307215598,5.5227756,224.65,224.44,5.0]
[1734307215804,0.5227756,224.65,224.47,5.0]
[1734307216015,5.5227756,224.65,224.45,0.66804829]
[1734307216313,7.5001442,224.65,224.45,5.0]
[1734307216518,2.5001442,224.65,224.45,5.0]
[1734307216721,22.5001442,224.65,224.47,5.0]
[1734307216921,22.5001442,224.65,224.49,5.0]
[1734307216922,2.5001442,224.65,224.49,5.0]
[1734307217122,0.5227756,224.65,224.51,5.0]
[1734307217428,0.5227756,224.65,224.49,5.0]
[1734307217630,0.5227756,224.65,224.48,20.66798197]
[1734307217831,0.5227756,224.65,224.47,5.0]
[1734307218154,0.5227756,224.65,224.49,5.0]
[1734307218663,20.5227756,224.65,224.49,5.0]
[1734307218953,20.5227756,224.65,224.42,20.0]
[1734307219104,20.0,224.64,224.42,20.0]
[1734307219306,0.12549,224.61,224.47,5.0]
[1734307219499,20.0,224.62,224.43,0.66821574]
[1734307219500,20.0,224.62,224.5,5.0]
[1734307219739,0.5227756,224.65,224.43,19.42762748]
[1734307219740,20.0,224.63,224.47,5.0]
[1734307220314,20.5227756,224.65,224.5,5.0]
[1734307220704,20.5227756,224.65,224.44,5.0]
[1734307220705,0.12549,224.64,224.44,5.0]
[1734307221047,0.12549,224.61,224.46,5.0]
[1734307221211,0.12549,224.61,224.49,5.0]
[1734307221906,0.12549,224.61,224.46,5.0]
[1734307222153,0.12549,224.63,224.46,5.0]
[1734307222470,0.12549,224.61,224.4,11.4292]
[1734307222768,20.12549,224.59,224.4,5.0]
[1734307222920,20.12549,224.59,224.42,5.0]
[1734307223347,20.12549,224.59,224.4,5.0]
[1734307223663,0.12549,224.54,224.4,5.0]
[1734307223961,0.12549,224.54,224.37,0.66828728]
[1734307223962,0.12549,224.54,224.39,5.0]
[1734307224664,0.12549,224.54,224.43,5.0]
[1734307224991,0.12549,224.54,224.38,0.95202337]
[1734307225201,0.12549,224.52,224.36,5.0]
[1734307225566,0.12549,224.52,224.35,0.95202337]
[1734307225765,0.12549,224.5,224.34,0.95202337]
[1734307225990,0.12549,224.5,224.32,0.95202337]
[1734307226188,0.12549,224.5,224.33,5.0]
[1734307226374,0.12549,224.5,224.28,7.9825]
[1734307226375,0.12549,224.5,224.35,5.95202337]
[1734307226906,0.12549,224.5,224.38,5.0]
[1734307227059,0.12549,224.5,224.35,5.95202337]
[1734307227263,0.12549,224.5,224.36,0.95202337]
[1734307227494,0.12549,224.51,224.34,5.0]
[1734307227662,0.12549,224.51,224.36,0.96451415]
[1734307228087,0.12549,224.51,224.29,18.75941174]
[1734307228088,0.12549,224.51,224.35,0.96451415]
[1734307228609,20.0,224.52,224.39,0.96451415]
[1734307228819,0.12549,224.47,224.37,0.96451415]
[1734307229482,0.12549,224.49,224.37,0.96451415]
[1734307230021,0.12549,224.49,224.36,0.96451415]
[1734307230022,0.12549,224.42,224.36,0.96451415]
[1734307230326,0.12549,224.42,224.26,5.0]
[1734307230327,0.12549,224.4,224.32,0.96451415]
[1734307230520,0.12549,224.4,224.31,0.96451415]
[1734307230700,20.12549,224.4,224.25,0.96451415]
[1734307231115,0.12549,224.42,224.21,6.619]
[1734307231486,25.12549,224.42,224.21,6.619]
[1734307231685,0.12549,224.4,224.23,5.0]
[1734307232308,0.12549,224.38,224.23,5.0]
[1734307232622,0.12549,224.35,224.26,5.0]
[1734307233005,0.12549,224.35,224.24,5.0]
[1734307233211,0.12549,224.35,224.22,0.66883492]
[1734307233212,0.12549,224.35,224.22,5.0]
[1734307233392,20.0,224.34,224.22,5.0]
[1734307233587,0.12549,224.33,224.21,1.619]
[1734307233788,20.0,224.31,224.2,5.0]
[1734307233989,0.12549,224.3,224.2,5.0]
[1734307234697,20.12549,224.3,224.2,5.0]
[1734307235816,11.1363,224.49,224.2,25.0]
[1734307236016,6.0834,224.52,224.2,25.0]
[1734307236017,11.1353,224.51,224.37,5.0]
[1734307236900,5.5681,224.5,224.37,5.0]
[1734307237097,5.5681,224.5,224.35,5.6684209]
[1734307237320,5.5681,224.5,224.35,5.0]
[1734307237617,20.0,224.47,224.33,5.0]
[1734307237819,5.5681,224.5,224.33,5.0]
[1734307237990,5.5681,224.5,224.35,5.0]
[1734307238799,5.5681,224.5,224.31,0.66842143]
[1734307238800,5.5681,224.5,224.38,5.0]
[1734307239006,5.567,224.54,224.42,5.0]
[1734307239293,6.0081,224.58,224.46,5.0]
[1734307239498,5.5647,224.63,224.46,5.0]
[1734307240402,5.5647,224.63,224.5,5.0]
[1734307242199,0.12549,224.62,224.5,5.0]
[1734307242636,0.12549,224.59,224.5,5.0]
[1734307242932,20.0,224.6,224.52,5.0]
[1734307244050,0.12549,224.59,224.49,5.0]
[1734307244341,0.12549,224.59,224.46,11.6368]
[1734307244645,0.12549,224.59,224.47,5.0]
[1734307244848,20.0,224.57,224.39,5.0]
[1734307245049,20.0,224.52,224.39,5.0]
[1734307245345,0.12549,224.51,224.39,5.0]
[1734307245544,0.12549,224.51,224.38,6.2586]
[1734307245545,0.12549,224.51,224.41,5.0]
[1734307245913,0.25098,224.51,224.41,5.0]
[1734307247642,0.12549,224.51,224.41,5.0]
[1734307247844,0.25098,224.47,224.35,5.66829066]
[1734307248061,0.25098,224.47,224.31,5.0]
[1734307249122,0.25098,224.42,224.31,5.0]
[1734307249644,0.25098,224.42,224.29,5.0]
[1734307250232,0.25098,224.42,224.32,5.0]
[1734307250435,0.25098,224.42,224.3,5.0]
[1734307250846,0.25098,224.42,224.32,5.0]
[1734307252958,0.25098,224.42,224.34,5.0]
[1734307253937,0.25098,224.37,224.27,5.0]
[1734307254140,0.25098,224.37,224.26,1.6421]
[1734307254354,0.25098,224.37,224.24,11.151]
[1734307255464,0.25098,224.32,224.22,5.0]
[1734307255820,0.25098,224.32,224.11,11.155]
[1734307255821,0.25098,224.32,224.17,5.0]
[1734307256054,0.25098,224.32,224.16,5.0]
[1734307256262,0.25098,224.32,224.13,5.0]
[1734307256571,20.12549,224.28,224.15,5.0]
[1734307256771,0.25098,224.27,224.15,5.0]
[1734307257144,0.12549,224.27,224.15,5.0]
[1734307257360,0.12549,224.27,224.12,2.18271692]
[1734307257361,0.12549,224.27,224.17,5.0]
[1734307257540,20.0,224.26,224.17,5.0]
[1734307257739,0.12549,224.25,224.17,5.0]
[1734307258764,0.25098,224.25,224.17,5.0]
[1734307258986,0.25098,224.25,224.15,5.0]
[1734307259149,0.25098,224.25,224.17,5.0]
[1734307260383,0.25098,224.25,224.12,2.18271692]
[1734307260384,2.71405516,224.2,224.15,5.0]
[1734307260896,22.71405516,224.2,224.11,5.0]
[1734307261101,0.12549,224.19,224.11,5.0]
[1734307261279,22.71405516,224.2,224.13,5.0]
[1734307261597,2.71405516,224.2,224.13,5.0]
[1734307261891,2.71405516,224.2,224.11,5.0]
[1734307263000,20.0,224.18,224.11,5.0]
[1734307263195,0.12549,224.19,224.07,5.0]
[1734307263196,20.0,224.16,224.07,5.0]
[1734307263394,0.12549,224.15,224.07,5.0]
[1734307263694,0.12549,224.15,224.06,5.0]
[1734307263900,20.0,224.16,224.06,0.66931324]
[1734307264068,20.0,224.16,224.05,6.6655]
[1734307264275,20.0,224.16,224.08,5.0]
[1734307264494,20.0,224.16,224.06,5.0]
[1734307264792,20.0,224.16,224.05,1.6655]
[1734307264793,20.0,224.16,224.08,5.0]
[1734307265091,20.0,224.16,224.06,5.0]
[1734307265494,20.0,224.16,224.05,1.6655]
[1734307265495,20.0,224.16,224.08,5.0]
[1734307265674,20.0,224.13,224.06,5.0]
[1734307265869,20.0,224.13,224.05,1.6655]
[1734307266084,20.0,224.13,224.06,5.0]
[1734307266408,20.0,224.17,224.12,5.0]
[1734307266892,0.12549,224.16,224.07,5.0]
[1734307267078,0.12549,224.16,224.05,6.6655]
[1734307267281,0.12549,224.16,224.03,5.0]
[1734307267477,0.12549,224.16,223.98,6.559]
[1734307267801,0.12549,224.16,223.87,5.0]
[1734307267802,0.25098,224.07,223.95,5.0]
[1734307268002,0.25098,224.07,223.97,5.0]
[1734307268372,0.25098,224.07,223.95,5.0]
[1734307268592,0.25098,224.07,223.97,5.0]
[1734307269584,0.12549,224.07,223.99,5.0]
[1734307269783,20.0,224.08,224.01,5.0]
[1734307270025,0.5226,224.16,224.06,5.0]
[1734307270026,5.5766,224.15,224.06,5.0]
[1734307270598,0.12549,224.14,224.05,5.0]
[1734307271197,20.0,224.12,224.06,5.0]
[1734307271903,6.908,224.24,224.11,5.0]
[1734307272301,0.12549,224.19,224.09,5.0]
[1734307272505,0.12549,224.19,224.05,23.776884]
[1734307272680,0.12549,224.19,224.07,5.0]
[1734307273211,8.184985,224.2,223.99,5.0]
[1734307273212,0.25098,224.16,223.99,5.0]
[1734307273410,20.25098,224.16,223.99,5.0]
[1734307273580,0.12549,224.13,224.0,5.0]
[1734307273819,20.0,224.09,224.0,5.0]
[1734307274285,20.0,224.09,223.98,5.0]
[1734307274490,20.0,224.09,224.0,5.0]
[1734307274687,5.5773,224.12,224.03,5.0]
[1734307274887,13.760185,224.2,224.06,23.776884]
[1734307274888,5.5765,224.16,224.06,23.776884]
[1734307275502,5.5765,224.16,224.07,5.0]
[1734307276076,20.0,224.13,224.04,23.776884]
[1734307276409,20.0,224.13,224.07,5.0]
[1734307276896,20.0,224.13,224.01,5.0]
[1734307277107,20.0,224.13,223.97,1.6286]
[1734307277108,0.25098,224.12,223.97,1.6286]
[1734307277300,0.25098,224.12,223.95,5.0]
[1734307277301,20.0,224.08,223.95,5.0]
[1734307277596,20.0,224.08,223.99,5.0]
[1734307278171,20.0,224.04,223.99,5.0]
[1734307279889,20.0,224.04,223.95,23.902374]
[1734307280098,20.0,224.04,223.94,3.00191019]
[1734307280387,25.5795,224.04,223.91,1.5134]
[1734307280689,96.12278668,224.46,223.93,18.75941174]
[1734307280690,0.5226,224.17,223.93,18.75941174]
[1734307280901,6.4317,224.16,223.94,0.79491613]
[1734307281362,6.4317,224.16,223.96,0.12549]
[1734307281563,6.4317,224.16,223.98,0.12549]
[1734307281791,12.008,224.16,224.0,0.12549]
[1734307281991,12.008,224.16,224.02,0.12549]
[1734307282172,12.008,224.16,224.04,0.12549]
[1734307283089,20.0,224.13,224.01,23.776884]
[1734307283273,25.5772,224.13,223.94,6.3504]
[1734307283465,36.7314,224.13,223.94,6.3504]
[1734307283669,0.12549,224.12,223.94,6.3504]
[1734307283882,0.25098,224.12,223.94,6.3504]
[1734307284384,0.25098,224.12,223.95,0.12549]
[1734307284585,0.12549,224.12,223.95,0.12549]
[1734307285195,20.0,224.08,223.95,0.12549]
[1734307285365,20.0,224.08,223.95,23.902374]
[1734307286115,20.0,224.08,223.94,6.3504]
[1734307286773,0.12549,224.07,223.91,1.5134]
[1734307286974,0.12549,224.05,223.85,0.6697554]
[1734307287280,20.0,223.99,223.84,2.25326937]
[1734307287597,20.0,223.99,223.84,1.5834]
[1734307289059,5.5808,223.98,223.84,1.5834]
[1734307289263,20.0,223.95,223.84,1.5834]
[1734307289463,20.0,223.95,223.78,7.8948]
[1734307289690,5.5808,223.98,223.78,1.5279]
[1734307289691,20.0,223.91,223.78,1.5279]
[1734307290993,6.2093,223.94,223.78,1.5279]
[1734307290994,20.0,223.9,223.78,1.5279]
[1734307291197,25.5828,223.9,223.78,1.5279]
[1734307291668,25.5828,223.9,223.88,7.56e-05]
[1734307291868,0.12549,223.89,223.88,7.56e-05]
[1734307292065,0.25098,223.89,223.88,7.56e-05]
[1734307292373,0.25098,223.89,223.72,1.523]
[1734307292374,0.12549,223.86,223.72,1.523]
[1734307292591,0.12549,223.84,223.72,1.523]
[1734307292898,20.0,223.8,223.72,1.523]
[1734307293794,20.0,223.8,223.68,6.3726]
[1734307294092,20.0,223.8,223.66,22.0263756]
[1734307294309,20.0,223.8,223.66,2.0263756]
[1734307294593,5.5845,223.83,223.67,0.67052]
[1734307294803,12.1894,223.87,223.68,0.12549]
[1734307294980,12.1894,223.87,223.7,0.12549]
[1734307295193,6.6058,223.87,223.72,0.12549]
[1734307295388,5.5826,223.91,223.74,23.902374]
[1734307295574,5.5826,223.91,223.76,23.902374]
[1734307296780,20.0,223.86,223.76,23.776884]
[1734307296989,20.0,223.86,223.73,23.776884]
[1734307298014,20.0,223.86,223.68,0.67025574]
[1734307298015,0.12549,223.85,223.68,0.67033014]
[1734307298516,0.12549,223.85,223.69,0.12549]
[1734307298822,20.0,223.81,223.69,0.12549]
[1734307299118,20.0,223.81,223.68,0.67033014]
[1734307299119,0.12549,223.8,223.66,2.0263756]
[1734307299915,20.0,223.81,223.66,2.0263756]
[1734307300081,20.0,223.81,223.68,0.12549]
[1734307300289,20.0,223.81,223.7,0.12549]
[1734307300980,20.0,223.81,223.7,23.902374]
[1734307302073,25.5852,223.81,223.66,2.0263756]
[1734307302275,43.457567,223.81,223.66,2.0263756]
[1734307302513,43.457567,223.81,223.67,0.12549]
[1734307303082,43.457567,223.81,223.66,2.0263756]
[1734307303083,20.0,223.77,223.66,2.0263756]
[1734307304336,25.5861,223.77,223.66,2.0263756]
[1734307304630,0.12549,223.76,223.66,0.5227756]
[1734307304833,25.5861,223.77,223.66,0.5227756]
[1734307305700,0.12549,223.74,223.66,0.5227756]
[1734307305921,20.0,223.71,223.66,0.5227756]
[1734307306330,20.0,223.72,223.66,0.5227756]
[1734307306998,5.5875,223.71,223.66,0.5227756]
[1734307307204,20.0,223.68,223.66,0.5227756]
[1734307308632,20.12549,223.69,223.66,0.5227756]
[1734307309211,20.12549,223.69,223.66,7.56e-05]
[1734307309615,5.0,223.7,223.44,23.51270991]
[1734307309616,20.25098,223.64,223.44,0.5227756]
[1734307309998,20.12549,223.64,223.46,0.12549]
[1734307310227,20.0,223.65,223.47,0.67095503]
[1734307310602,20.0,223.61,223.48,0.12549]
[1734307310926,20.0,223.61,223.5,0.12549]
[1734307311835,20.0,223.61,223.52,23.776884]
[1734307312040,20.0,223.65,223.54,23.776884]
[1734307312213,2.66612541,223.74,223.57,0.12549]
[1734307312552,5.5874,223.72,223.59,0.12549]
[1734307312742,5.5874,223.72,223.6,23.776884]
[1734307313040,5.5874,223.72,223.54,0.67070913]
[1734307313200,5.5874,223.72,223.55,23.902374]
[1734307313396,5.5874,223.72,223.57,23.902374]
[1734307313603,5.5874,223.72,223.59,23.776884]
[1734307313807,5.5874,223.72,223.61,23.776884]
[1734307314030,5.5874,223.72,223.59,23.776884]
[1734307314209,5.5874,223.72,223.59,0.12549]
[1734307314811,5.5874,223.72,223.6,23.776884]
[1734307316024,20.0,223.69,223.6,23.776884]
[1734307316546,20.0,223.7,223.55,23.902374]
[1734307316848,20.0,223.7,223.55,23.776884]
[1734307317305,20.0,223.7,223.57,23.776884]
[1734307317727,5.588,223.7,223.57,23.776884]
[1734307318024,20.0,223.67,223.57,23.776884]
[1734307319638,0.12549,223.66,223.52,2.31716539]
[1734307319841,0.12549,223.66,223.53,23.776884]
[1734307320025,0.12549,223.66,223.52,1.6464]
[1734307320444,20.12549,223.66,223.52,1.6464]
[1734307320662,20.0,223.64,223.52,1.6464]
[1734307321351,5.5894,223.64,223.52,1.6464]
[1734307321556,5.5894,223.64,223.46,6.0588]
[1734307321557,20.0,223.61,223.46,6.0588]
[1734307321853,20.0,223.61,223.47,0.12549]
[1734307322425,20.0,223.61,223.49,0.12549]
[1734307322629,1.60606084,223.71,223.51,24.027864]
[1734307322824,0.12549,223.72,223.53,23.902374]
[1734307323429,0.25098,223.72,223.53,23.902374]
[1734307323745,16.7611,223.73,223.56,0.12549]
[1734307323947,16.7611,223.73,223.57,23.776884]
[1734307324248,0.12549,223.72,223.57,23.776884]
[1734307324852,5.5875,223.71,223.57,23.776884]
[1734307325231,20.0,223.68,223.57,23.776884]
[1734307326647,0.12549,223.69,223.5,0.67075701]
[1734307326847,20.0,223.65,223.46,32.19836279]
[1734307327050,20.0,223.65,223.46,13.43895105]
[1734307327357,20.0,223.65,223.47,0.12549]
[1734307327527,20.0,223.65,223.49,0.12549]
[1734307327725,20.0,223.65,223.46,31.52751174]
[1734307327726,20.0,223.65,223.51,0.12549]
[1734307328048,25.5891,223.65,223.51,0.12549]
[1734307328246,25.5891,223.65,223.49,20.0]
[1734307328247,0.12549,223.64,223.49,20.0]
[1734307328452,25.5891,223.65,223.51,0.12549]
[1734307328653,25.5891,223.65,223.51,0.25098]
[1734307329770,25.5891,223.65,223.51,24.027864]
[1734307330128,25.5891,223.65,223.51,23.776884]
[1734307330355,0.12549,223.64,223.47,0.12549]
[1734307330725,0.25098,223.64,223.46,1.5808]
[1734307331031,20.0,223.6,223.46,1.5808]
[1734307331242,20.0,223.6,223.47,0.12549]
[1734307332140,20.0,223.6,223.47,23.776884]
[1734307332674,25.5905,223.6,223.47,23.776884]
[1734307332960,2.72984294,223.59,223.47,23.776884]
[1734307334465,6.6124,223.63,223.5,0.12549]
[1734307335070,5.5898,223.62,223.49,23.776884]
[1734307335254,8.31689084,223.62,223.47,23.776884]
[1734307335633,20.0,223.59,223.48,0.12549]
[1734307336180,25.5908,223.59,223.47,23.776884]
[1734307336537,0.12549,223.58,223.46,1.5808]
[1734307337744,20.0,223.54,223.46,1.5808]
[1734307338171,20.0,223.54,223.47,23.776884]
[1734307339178,20.0,223.51,223.44,0.5227756]
[1734307339543,0.12549,223.57,223.44,1.1939891]
[1734307339841,20.0,223.55,223.44,0.5227756]
[1734307340858,5.5916,223.55,223.44,0.5227756]
[1734307341043,20.0,223.52,223.44,24.2996596]
[1734307341648,20.0,223.52,223.44,0.5227756]
[1734307343464,5.5916,223.55,223.44,0.5227756]
[1734307343656,5.5907,223.59,223.44,0.5227756]
[1734307343976,5.5907,223.59,223.46,1.5435]
[1734307344175,5.5907,223.59,223.47,23.776884]
[1734307344482,5.5907,223.59,223.47,24.44791951]
[1734307345247,20.0,223.6,223.47,24.44791951]
[1734307346182,20.0,223.58,223.47,24.44791951]
[1734307346579,20.0,223.58,223.47,23.776884]
[1734307346883,20.0,223.58,223.44,0.5227756]
[1734307346884,0.25098,223.57,223.44,0.5227756]
[1734307347244,20.0,223.53,223.44,0.5227756]
[1734307349159,20.0,223.5,223.44,0.5227756]
[1734307349766,26.5222,223.5,223.44,0.5227756]
[1734307350574,0.25098,223.49,223.44,0.5227756]
[1734307350874,0.12549,223.49,223.44,0.5227756]
[1734307351067,26.5222,223.5,223.44,0.5227756]
[1734307351576,32.1151,223.5,223.44,0.5227756]
[1734307351778,25.5929,223.5,223.44,0.5227756]
[1734307352482,20.0,223.5,223.44,0.5227756]
[1734307352681,5.71739,223.54,223.44,0.5227756]
[1734307352981,5.5919,223.54,223.44,0.5227756]
[1734307354458,20.0,223.51,223.44,0.5227756]
[1734307358176,5.5919,223.54,223.44,2.1004756]
[1734307358380,5.5919,223.54,223.45,23.776884]
[1734307359374,20.0,223.51,223.44,2.1004756]
[1734307359791,5.5928,223.51,223.44,2.1004756]
[1734307359986,20.0,223.48,223.44,0.5227756]
[1734307361301,5.5928,223.51,223.44,0.5227756]
[1734307361812,13.83345706,223.55,223.44,0.5227756]
[1734307361813,8.24195706,223.55,223.44,0.5227756]
[1734307362395,5.5907,223.59,223.44,0.5227756]
[1734307362622,5.5907,223.59,223.46,23.776884]
[1734307362921,5.5907,223.59,223.48,25.389984]
[1734307364202,20.0,223.56,223.48,25.389984]
[1734307367097,20.0,223.56,223.48,1.6131]
[1734307367307,20.0,223.57,223.48,1.6131]
[1734307367696,0.12549,223.56,223.44,0.5227756]
[1734307368025,0.25098,223.56,223.44,0.5227756]
[1734307368254,20.0,223.57,223.44,0.5227756]
[1734307368923,20.0,223.57,223.44,1.19388641]
[1734307369110,20.0,223.57,223.45,23.776884]
[1734307369325,25.5911,223.57,223.45,23.776884]
[1734307369543,5.5911,223.57,223.45,23.776884]
[1734307370000,5.5911,223.57,223.44,0.5227756]
[1734307371529,5.5911,223.57,223.45,23.776884]
[1734307374328,20.0,223.54,223.45,23.776884]
[1734307375401,5.592,223.53,223.44,0.5227756]
[1734307376138,20.0,223.5,223.44,0.5227756]
[1734307376743,0.12549,223.51,223.44,0.5227756]
[1734307378033,5.5928,223.5,223.44,0.5227756]
[1734307378232,20.0,223.47,223.44,0.5227756]
[1734307378734,5.592,223.54,223.44,0.5227756]
[1734307379035,20.0,223.51,223.44,0.5227756]
[1734307379420,0.12549,223.5,223.44,0.5227756]
[1734307379923,21.64090485,223.56,223.44,0.5227756]
[1734307380112,0.12549,223.55,223.44,0.5227756]
[1734307380309,2.65845776,223.57,223.44,0.5227756]
[1734307381515,0.25098,223.56,223.44,0.5227756]
[1734307381923,20.25098,223.56,223.44,0.5227756]
[1734307382407,25.84228,223.56,223.44,0.5227756]
[1734307382602,25.71679,223.56,223.44,0.5227756]
[1734307383669,20.0,223.51,223.44,0.5227756]
[1734307385049,25.5926,223.51,223.44,0.5227756]
[1734307386084,0.12549,223.5,223.44,0.5227756]
[1734307386683,25.5926,223.51,223.44,0.5227756]
[1734307388094,20.0,223.52,223.44,0.5227756]
[1734307389264,0.12549,223.55,223.44,0.5227756]
[1734307390390,20.0,223.51,223.44,0.5227756]
[1734307391987,5.5926,223.51,223.44,0.5227756]
[1734307393388,2.65845776,223.57,223.45,1.6167]
[1734307393573,2.65845776,223.57,223.45,2.28777113]
[1734307393883,5.5908,223.59,223.47,23.776884]
[1734307394075,5.5908,223.59,223.47,24.44789004]
[1734307394488,5.5908,223.59,223.47,23.776884]
[1734307394894,16.89259,223.65,223.47,23.776884]
[1734307395097,20.0,223.62,223.47,23.776884]
[1734307395283,2.74761474,223.6,223.47,23.776884]
[1734307396105,20.0,223.57,223.47,23.776884]
[1734307396879,20.0,223.57,223.46,6.1486]
[1734307397085,20.0,223.54,223.46,6.1486]
[1734307397599,0.12549,223.53,223.46,6.1486]
[1734307398101,20.0,223.54,223.46,6.1486]
[1734307398305,5.5912,223.57,223.46,6.1486]
[1734307399807,20.0,223.54,223.46,6.1486]
[1734307400174,0.12549,223.53,223.46,6.1486]
[1734307400394,0.12549,223.53,223.45,1.6167]
[1734307400395,0.25098,223.53,223.45,1.6167]
[1734307400700,20.0,223.54,223.45,1.6167]
[1734307400885,0.12549,223.53,223.45,1.6167]
[1734307401387,0.25098,223.53,223.45,1.6167]
[1734307401809,0.12549,223.48,223.44,0.5227756]
[1734307402117,0.25098,223.48,223.44,0.5227756]
[1734307402800,0.12549,223.48,223.44,0.5227756]
[1734307402998,20.0,223.49,223.44,0.5227756]
[1734307404281,0.12549,223.48,223.44,0.5227756]
[1734307405025,5.5933,223.49,223.44,0.5227756]
[1734307405581,20.0,223.5,223.44,0.5227756]
[1734307407482,5.5922,223.53,223.44,0.5227756]
[1734307408397,16.64914947,223.59,223.44,0.5227756]
[1734307408398,5.84178,223.58,223.44,0.5227756]
[1734307409394,5.5908,223.58,223.44,0.5227756]
[1734307409604,5.5908,223.58,223.45,2.25183288]
[1734307409799,5.5908,223.58,223.45,1.5807]
[1734307410192,0.12549,223.57,223.45,1.5807]
[1734307410627,4.37481711,223.6,223.45,1.5807]
[1734307410628,5.5913,223.56,223.45,1.5807]
[1734307410811,20.0,223.53,223.45,1.5807]
[1734307411134,8.33801474,223.6,223.46,6.5129]
[1734307411307,8.33801474,223.6,223.47,0.6710648]
[1734307411819,2.74761474,223.6,223.48,23.776884]
[1734307411987,2.74761474,223.6,223.49,0.67097903]
[1734307412187,2.74761474,223.6,223.5,1.5772]
[1734307412909,5.5894,223.64,223.5,1.5772]
[1734307413229,5.5894,223.64,223.51,0.67094225]
[1734307413588,2.6350282,223.63,223.51,0.67094225]
[1734307414289,20.0,223.66,223.52,30.075074]
[1734307414503,20.0,223.66,223.53,0.67084811]